bitfinex-derivatives/quotes_ETHF0:USTF0_20230104
["timestamp","ask_amount","ask_price","bid_price","bid_amount"]
[1672805810218,1.5,1251.9,1251.6,3.0073]
[1672805812739,3.0,1252.2,1251.6,3.0073]
[1672805812951,3.0,1252.3,1251.8,3.0073]
[1672805813904,1.5,1252.4,1252.0,3.0073]
[1672805813905,3.0,1252.4,1252.0,3.0073]
[1672805815265,1.5,1252.6,1252.2,3.0073]
[1672805815685,3.0,1252.6,1252.2,3.0073]
[1672805815900,3.0,1252.6,1252.0,3.0073]
[1672805819056,3.0,1252.6,1252.2,3.0073]
[1672805820837,6.0073,1252.6,1252.1,3.0073]
[1672805823677,3.0073,1252.5,1252.1,3.0073]
[1672805823884,1.5,1252.4,1252.1,3.0073]
[1672805828408,5.67955932,1252.4,1251.9,21.6433]
[1672805829147,5.67955932,1252.4,1251.9,16.6433]
[1672805829459,7.18685932,1252.3,1251.9,3.0073]
[1672805829674,7.18685932,1252.3,1251.7,3.0073]
[1672805829675,3.0073,1252.1,1251.7,3.0073]
[1672805832090,3.0073,1251.9,1251.6,1.19447765]
[1672805832403,3.0073,1251.9,1251.4,3.48111272]
[1672805832613,3.0,1251.8,1251.4,1.69447765]
[1672805832824,3.0,1251.8,1251.4,0.5]
[1672805833236,3.0,1251.8,1251.4,1.69447765]
[1672805833447,3.0,1251.8,1251.3,5.98841272]
[1672805834505,3.0073,1251.7,1251.3,4.20177765]
[1672805835569,3.0073,1251.7,1251.3,3.0073]
[1672805837559,4.1887,1251.6,1251.1,3.0073]
[1672805838499,4.1887,1251.6,1250.9,4.20177765]
[1672805838823,3.0073,1251.4,1250.9,3.5073]
[1672805839876,4.1887,1251.6,1250.9,3.5073]
[1672805840293,4.1887,1251.6,1251.1,3.0073]
[1672805843766,1.1814,1251.6,1250.9,0.5]
[1672805843978,3.0073,1251.5,1251.1,3.0073]
[1672805849021,3.0073,1251.5,1251.0,3.0073]
[1672805850072,3.0073,1251.3,1251.0,3.0073]
[1672805852800,3.0073,1251.3,1250.8,3.5073]
[1672805853539,3.0073,1251.3,1250.6,16.6433]
[1672805853748,3.0073,1251.1,1250.6,16.6433]
[1672805853961,3.0073,1251.1,1250.6,3.0073]
[1672805854374,3.0,1251.0,1250.6,3.0073]
[1672805854801,3.0,1251.0,1250.8,3.0073]
[1672805862055,1.1814,1251.3,1250.8,3.0073]
[1672805862275,1.5,1251.4,1250.8,3.0073]
[1672805862486,3.0,1251.4,1250.8,3.0073]
[1672805863528,3.0073,1251.3,1250.8,3.0073]
[1672805863738,1.5,1251.2,1250.8,3.0073]
[1672805866688,3.0073,1251.1,1250.8,3.0073]
[1672805869756,3.0073,1251.1,1250.8,4.20177765]
[1672805871880,3.0073,1251.1,1250.8,5.98841272]
[1672805873863,3.0073,1251.1,1250.9,1.19447765]
[1672805874391,3.0073,1251.1,1250.9,1.18968983]
[1672805875879,3.0073,1251.1,1250.8,4.79393507]
[1672805877334,3.0073,1251.1,1250.8,7.18455043]
[1672805877550,3.0073,1251.1,1250.9,1.78663507]
[1672805878817,1.5,1251.2,1250.9,1.78663507]
[1672805879560,1.5,1251.2,1251.0,3.0073]
[1672805882282,1.5,1251.2,1250.9,1.78663507]
[1672805883544,1.5,1251.2,1250.8,7.18455043]
[1672805883861,1.5,1251.2,1250.9,1.78663507]
[1672805884491,1.5,1251.2,1250.8,7.18455043]
[1672805886070,1.5,1251.2,1250.9,1.78663507]
[1672805886590,1.5,1251.2,1250.8,4.79393507]
[1672805886802,1.5,1251.2,1250.8,7.18455043]
[1672805886803,5.67955932,1251.2,1250.8,7.18455043]
[1672805887007,5.67955932,1251.2,1250.8,4.79393507]
[1672805887951,3.0073,1251.1,1250.8,4.79393507]
[1672805889945,7.18685932,1251.1,1250.8,4.79393507]
[1672805891944,7.18685932,1251.1,1250.8,7.18455043]
[1672805893436,7.18685932,1251.1,1250.7,1.78663507]
[1672805893647,4.17955932,1251.0,1250.7,1.78663507]
[1672805893856,3.59631713,1250.9,1250.6,1.78663507]
[1672805894158,3.59660281,1250.8,1250.6,1.78663507]
[1672805895372,10.78346213,1250.9,1250.6,1.78663507]
[1672805895531,3.59660281,1250.9,1250.6,4.79393507]
[1672805895738,3.59660281,1250.9,1250.6,7.18455043]
[1672805896055,3.59660281,1250.9,1250.6,4.79393507]
[1672805896996,3.59660281,1250.9,1250.6,7.18455043]
[1672805897206,3.59660281,1250.9,1250.6,4.79393507]
[1672805898150,8.95756213,1251.0,1250.6,4.79393507]
[1672805898469,3.59660281,1250.9,1250.6,4.79393507]
[1672805900463,8.95756213,1251.0,1250.6,4.79393507]
[1672805900986,3.0,1250.9,1250.6,4.79393507]
[1672805901424,6.59660281,1250.9,1250.6,4.79393507]
[1672805902355,3.0,1250.9,1250.6,4.79393507]
[1672805905814,6.59660281,1250.9,1250.6,4.79393507]
[1672805906129,9.60390281,1250.9,1250.6,3.0073]
[1672805908239,6.59660281,1250.9,1250.5,3.20406929]
[1672805908556,9.60390281,1250.9,1250.5,8.60198465]
[1672805910013,9.60390281,1250.9,1250.6,1.78663507]
[1672805910863,9.60390281,1250.9,1250.5,6.21136929]
[1672805911369,3.0,1250.9,1250.6,1.78663507]
[1672805911691,3.0,1250.9,1250.6,4.17725043]
[1672805913275,3.0,1250.9,1250.7,3.0073]
[1672805919898,3.0,1250.9,1250.7,4.79393507]
[1672805920215,3.0,1250.9,1250.7,3.0073]
[1672805920628,3.0,1250.9,1250.7,4.79393507]
[1672805920837,3.0,1250.9,1250.7,3.0073]
[1672805921574,6.59660281,1250.9,1250.6,1.78663507]
[1672805926310,9.60390281,1250.9,1250.6,1.78663507]
[1672805926724,3.59660281,1250.8,1250.5,6.21136929]
[1672805931249,7.77616213,1250.8,1250.5,6.21136929]
[1672805932613,3.59660281,1250.7,1250.5,4.42473422]
[1672805933773,7.77616213,1250.8,1250.5,4.42473422]
[1672805934294,3.59660281,1250.7,1250.5,4.42473422]
[1672805934611,7.77616213,1250.8,1250.5,4.42473422]
[1672805934928,3.59660281,1250.7,1250.5,4.42473422]
[1672805936089,3.59660281,1250.8,1250.5,4.42473422]
[1672805937350,3.59660281,1250.8,1250.5,6.21136929]
[1672805937872,3.59660281,1250.8,1250.5,4.42473422]
[1672805938717,7.77616213,1250.8,1250.5,4.42473422]
[1672805939028,3.59660281,1250.8,1250.5,4.42473422]
[1672805939976,7.77616213,1250.8,1250.5,4.42473422]
[1672805940401,3.59660281,1250.7,1250.5,4.42473422]
[1672805940613,7.77616213,1250.8,1250.5,4.42473422]
[1672805940922,3.0073,1250.7,1250.5,1.41743422]
[1672805941134,6.60390281,1250.7,1250.5,1.41743422]
[1672805942914,3.59660281,1250.7,1250.5,1.41743422]
[1672805945548,10.78346213,1250.8,1250.5,1.41743422]
[1672805946710,10.78346213,1250.8,1250.5,1.41079743]
[1672805946919,3.59660281,1250.7,1250.5,1.41079743]
[1672805947449,10.78346213,1250.8,1250.5,1.41079743]
[1672805950280,3.59660281,1250.7,1250.5,1.41079743]
[1672805951431,10.78346213,1250.8,1250.5,1.41079743]
[1672805951854,3.59660281,1250.7,1250.5,1.41079743]
[1672805952702,1.5,1250.6,1250.5,1.41079743]
[1672805953428,4.5073,1250.6,1250.5,1.41079743]
[1672805955214,1.5,1250.6,1250.5,1.41079743]
[1672805956796,5.09660281,1250.6,1250.5,1.41079743]
[1672805958281,1.5,1250.6,1250.5,1.41079743]
[1672805960909,6.60390281,1250.7,1250.5,1.41079743]
[1672805961114,1.5,1250.6,1250.5,1.41079743]
[1672805965317,3.59660281,1250.7,1250.5,1.41079743]
[1672805965524,10.78346213,1250.8,1250.5,4.41809743]
[1672805965732,1.5,1250.7,1250.5,6.2047325]
[1672805971641,1.5,1250.7,1250.5,4.41809743]
[1672805972270,5.09660281,1250.7,1250.5,4.41809743]
[1672805974577,3.59660281,1250.6,1250.5,1.41079743]
[1672805974789,9.27616213,1250.7,1250.5,1.41079743]
[1672805975107,5.09660281,1250.7,1250.5,1.41079743]
[1672805976159,5.09660281,1250.7,1250.4,1.78663507]
[1672805977734,9.27616213,1250.7,1250.4,1.78663507]
[1672805977946,3.59660281,1250.6,1250.4,1.78663507]
[1672805978572,9.27616213,1250.7,1250.4,1.78663507]
[1672805978784,9.27616213,1250.7,1250.3,7.18455043]
[1672805978996,3.59660281,1250.6,1250.3,7.18455043]
[1672805979306,3.59660281,1250.6,1250.4,1.78663507]
[1672805979729,9.27616213,1250.7,1250.4,1.78663507]
[1672805980260,5.09660281,1250.7,1250.4,1.78663507]
[1672805980473,5.09660281,1250.7,1250.4,4.17725043]
[1672805981200,5.09660281,1250.7,1250.5,3.0073]
[1672805981413,1.5,1250.7,1250.5,4.79393507]
[1672805982042,5.09660281,1250.7,1250.5,3.0073]
[1672805985515,5.09660281,1250.7,1250.5,4.79393507]
[1672805985728,5.09660281,1250.7,1250.5,3.0073]
[1672805994460,5.09660281,1250.7,1250.5,4.20321197]
[1672805995814,5.09660281,1250.7,1250.5,1.19591197]
[1672806000029,5.09660281,1250.7,1250.5,2.98254704]
[1672806000342,5.09660281,1250.7,1250.5,1.19591197]
[1672806000540,5.09660281,1250.7,1250.5,2.98254704]
[1672806001282,3.59660281,1250.7,1250.5,2.98254704]
[1672806001493,3.59660281,1250.7,1250.6,1.19591197]
[1672806001914,3.59660281,1250.7,1250.5,2.98254704]
[1672806002335,3.59660281,1250.7,1250.6,1.19591197]
[1672806003079,3.59660281,1250.7,1250.5,2.98254704]
[1672806003289,3.59660281,1250.7,1250.6,1.19591197]
[1672806003501,3.59660281,1250.7,1250.5,2.98254704]
[1672806004549,3.59660281,1250.7,1250.6,1.19591197]
[1672806004973,3.59660281,1250.7,1250.5,2.98254704]
[1672806005926,5.09660281,1250.7,1250.5,2.98254704]
[1672806006131,5.09660281,1250.7,1250.5,1.19591197]
[1672806006444,9.27616213,1250.7,1250.5,1.19591197]
[1672806007502,5.09660281,1250.7,1250.5,2.98254704]
[1672806008229,3.59660281,1250.7,1250.5,2.98254704]
[1672806008441,3.59660281,1250.7,1250.6,1.19591197]
[1672806009488,7.77616213,1250.8,1250.6,5.98984704]
[1672806010007,7.77616213,1250.8,1250.6,4.20321197]
[1672806010218,3.59660281,1250.7,1250.6,5.98984704]
[1672806010433,1.5,1250.7,1250.6,4.20321197]
[1672806010853,5.09660281,1250.7,1250.6,4.20321197]
[1672806011796,3.59660281,1250.8,1250.6,5.98984704]
[1672806012842,3.59660281,1250.8,1250.7,1.19591197]
[1672806013056,3.59660281,1250.9,1250.7,2.39061536]
[1672806013376,7.77616213,1251.1,1250.8,4.79393507]
[1672806013582,10.77616213,1251.1,1250.9,1.19567095]
[1672806014006,10.77616213,1251.1,1251.0,0.5]
[1672806014219,10.77616213,1251.1,1250.9,1.19567095]
[1672806014433,6.59660281,1251.1,1251.0,3.5073]
[1672806014645,3.59660281,1251.1,1251.0,3.5073]
[1672806014856,10.77616213,1251.2,1251.0,3.5073]
[1672806015379,1.5,1251.1,1251.0,3.0073]
[1672806015699,5.09660281,1251.1,1251.0,3.0073]
[1672806016216,1.5,1251.1,1251.0,3.0073]
[1672806018315,10.45756213,1251.3,1251.0,3.0073]
[1672806018525,5.09660281,1251.3,1251.2,3.0073]
[1672806019055,1.5,1251.3,1251.2,3.0073]
[1672806019267,7.77616213,1251.4,1251.2,3.0073]
[1672806019268,3.59660281,1251.4,1251.2,3.0073]
[1672806019477,3.0,1251.5,1251.2,3.0073]
[1672806020104,4.17955932,1251.6,1251.2,3.0073]
[1672806020315,4.78022155,1251.7,1251.5,5.0]
[1672806020638,10.11779931,1252.1,1251.6,3.0073]
[1672806020846,5.33757776,1252.1,1251.6,3.0073]
[1672806021053,3.0,1252.0,1251.6,3.0073]
[1672806021364,3.0,1252.0,1251.8,3.0073]
[1672806025889,0.00642959,1251.8,1251.6,3.0073]
[1672806026107,0.00642959,1251.8,1251.6,3.5073]
[1672806029047,0.00642959,1251.8,1251.6,3.0073]
[1672806031040,0.00642959,1251.8,1251.6,2.99973981]
[1672806038722,0.00642959,1251.8,1251.7,3.0073]
[1672806044082,0.00642959,1251.8,1251.5,0.5]
[1672806044295,0.00642959,1251.8,1251.6,3.0073]
[1672806050503,0.00642959,1251.8,1251.5,0.5]
[1672806050712,0.00642959,1251.8,1251.6,3.0073]
[1672806054069,0.00642959,1251.8,1251.6,4.20297095]
[1672806054596,0.00642959,1251.8,1251.6,5.98960602]
[1672806054807,0.00642959,1251.8,1251.7,1.19567095]
[1672806055122,0.00642959,1251.8,1251.6,5.98960602]
[1672806056071,0.00642959,1251.8,1251.6,4.20297095]
[1672806056285,0.00642959,1251.8,1251.7,1.19567095]
[1672806056487,0.00642959,1251.8,1251.6,5.98960602]
[1672806057014,0.00642959,1251.8,1251.7,1.19567095]
[1672806058277,0.00642959,1251.8,1251.7,4.17725043]
[1672806059951,0.00642959,1251.8,1251.7,1.78663507]
[1672806060587,0.00642959,1251.8,1251.7,4.17725043]
[1672806061630,0.00642959,1251.8,1251.7,2.39061536]
[1672806061949,0.00642959,1251.8,1251.7,4.18054776]
[1672806062373,0.00642959,1251.8,1251.7,2.39061536]
[1672806063420,0.00642959,1251.8,1251.7,3.80676735]
[1672806066161,0.00642959,1251.8,1251.7,2.39061536]
[1672806067201,0.00642959,1251.8,1251.7,4.17972162]
[1672806068151,0.00642959,1251.8,1251.7,1.78910626]
[1672806069823,13.74162811,1252.3,1251.7,4.40462772]
[1672806070039,3.0,1252.3,1252.0,1.19201111]
[1672806070453,3.0,1252.3,1252.1,3.0073]
[1672806077496,6.0073,1252.3,1251.9,3.5073]
[1672806081504,6.0073,1252.3,1251.9,3.0073]
[1672806081713,6.0073,1252.3,1251.9,3.5073]
[1672806083076,6.0073,1252.3,1251.9,3.0073]
[1672806083814,10.78752155,1252.3,1251.9,3.0073]
[1672806085077,6.0073,1252.3,1251.9,3.0073]
[1672806087382,10.78752155,1252.3,1251.9,3.0073]
[1672806088222,3.0073,1252.1,1251.7,3.0073]
[1672806088435,3.0073,1252.1,1251.6,1.19201111]
[1672806088649,7.78752155,1252.1,1251.6,1.19201111]
[1672806089702,7.78752155,1252.1,1251.7,3.0073]
[1672806089913,11.29919931,1252.2,1251.7,4.69931111]
[1672806090322,5.96162155,1252.2,1251.7,4.69931111]
[1672806092013,3.0073,1252.1,1251.7,4.19931111]
[1672806093058,3.0073,1252.1,1251.7,3.0073]
[1672806094223,3.0073,1252.1,1251.7,4.19931111]
[1672806095477,3.0073,1252.1,1251.7,3.0073]
[1672806097997,3.0073,1252.1,1251.7,4.19931111]
[1672806103045,3.0073,1252.1,1251.7,3.0073]
[1672806103472,7.78752155,1252.1,1251.7,3.0073]
[1672806105258,3.0073,1252.1,1251.7,3.0073]
[1672806105885,7.78752155,1252.1,1251.7,3.0073]
[1672806108409,3.0073,1252.1,1251.7,3.0073]
[1672806108936,3.0073,1252.1,1251.7,4.19931111]
[1672806110507,7.78752155,1252.1,1251.7,3.0073]
[1672806113664,7.78752155,1252.1,1251.6,6.48732777]
[1672806113976,7.78752155,1252.1,1251.6,4.69931111]
[1672806114187,7.78752155,1252.1,1251.6,6.48732777]
[1672806115872,7.78752155,1252.1,1251.7,3.0073]
[1672806116811,7.78752155,1252.1,1251.7,4.19931111]
[1672806117024,7.78752155,1252.1,1251.7,3.0073]
[1672806117442,7.78752155,1252.1,1251.7,4.19931111]
[1672806117867,13.12509931,1252.1,1251.7,3.0073]
[1672806118184,4.78022155,1252.0,1251.7,3.0073]
[1672806119027,13.12509931,1252.1,1251.7,3.0073]
[1672806119338,13.12509931,1252.1,1251.7,4.19931111]
[1672806119759,7.78752155,1252.1,1251.7,4.19931111]
[1672806120495,13.12509931,1252.1,1251.7,4.19931111]
[1672806121228,7.78752155,1252.1,1251.7,4.19931111]
[1672806121754,13.12509931,1252.1,1251.7,4.19931111]
[1672806121966,13.12509931,1252.1,1251.7,3.0073]
[1672806122280,13.12509931,1252.1,1251.7,4.19931111]
[1672806122484,4.78022155,1252.0,1251.7,4.19931111]
[1672806122807,13.12509931,1252.1,1251.7,4.19931111]
[1672806124593,4.78022155,1252.0,1251.7,4.19931111]
[1672806124797,13.12509931,1252.1,1251.7,4.19931111]
[1672806125958,13.12509931,1252.1,1251.7,5.98732777]
[1672806126275,7.78752155,1252.1,1251.7,5.98732777]
[1672806126596,4.78022155,1252.0,1251.7,4.19931111]
[1672806127117,4.78022155,1252.0,1251.7,5.98732777]
[1672806127845,4.78022155,1252.0,1251.7,2.98002777]
[1672806128483,4.78022155,1252.0,1251.7,1.19201111]
[1672806128688,13.12509931,1252.1,1251.7,2.98002777]
[1672806129639,13.12509931,1252.1,1251.7,1.19201111]
[1672806129843,13.12509931,1252.1,1251.7,2.98002777]
[1672806130483,13.12509931,1252.1,1251.7,1.19201111]
[1672806131215,4.78022155,1252.0,1251.7,1.19201111]
[1672806136677,10.11779931,1252.1,1251.8,4.19931111]
[1672806136897,10.11779931,1252.2,1251.9,1.19201111]
[1672806137095,10.11779931,1252.2,1252.0,3.0073]
[1672806137516,4.78022155,1252.2,1252.0,3.0073]
[1672806140050,4.78022155,1252.2,1251.8,2.98002777]
[1672806140355,4.78022155,1252.2,1251.9,3.0073]
[1672806140561,4.78022155,1252.2,1251.8,2.98002777]
[1672806140776,4.78022155,1252.2,1251.9,3.0073]
[1672806143722,13.11779931,1252.3,1251.9,4.19931111]
[1672806143924,13.11779931,1252.3,1251.9,3.0073]
[1672806144569,4.78022155,1252.2,1251.9,3.0073]
[1672806144881,13.11779931,1252.3,1251.9,3.0073]
[1672806146866,4.78022155,1252.2,1251.9,3.0073]
[1672806148982,13.11779931,1252.3,1251.9,3.0073]
[1672806149194,3.0073,1252.2,1251.7,5.98732777]
[1672806149725,7.78752155,1252.2,1251.7,4.19931111]
[1672806150136,13.12509931,1252.2,1251.7,4.19931111]
[1672806150976,4.78022155,1252.1,1251.7,4.19931111]
[1672806151728,3.0073,1252.0,1251.7,4.19931111]
[1672806152450,3.0073,1252.0,1251.7,3.0073]
[1672806153712,4.78022155,1252.1,1251.7,4.19931111]
[1672806154138,4.78022155,1252.1,1251.7,3.0073]
[1672806154338,4.78022155,1252.1,1251.7,4.19931111]
[1672806154549,4.78022155,1252.1,1251.7,3.0073]
[1672806154764,4.78022155,1252.1,1251.7,4.19931111]
[1672806158661,4.78022155,1252.1,1251.7,5.98732777]
[1672806158974,4.78022155,1252.1,1251.7,4.19931111]
[1672806162757,4.78022155,1252.1,1251.7,5.98732777]
[1672806162967,4.78022155,1252.1,1251.7,4.19931111]
[1672806166749,8.96892155,1252.2,1251.8,1.19201111]
[1672806167272,8.96892155,1252.2,1251.9,3.0073]
[1672806168535,5.96162155,1252.2,1251.9,3.0073]
[1672806168750,5.96162155,1252.2,1251.8,4.19931111]
[1672806171164,11.29919931,1252.2,1251.8,4.19931111]
[1672806171797,5.96162155,1252.2,1251.8,4.19931111]
[1672806173055,11.29919931,1252.2,1251.8,4.19931111]
[1672806173264,11.29919931,1252.2,1251.7,1.78801666]
[1672806173265,16.3073,1252.1,1251.7,0.00032777]
[1672806173470,7.19763042,1251.9,1251.5,14.82863258]
[1672806173686,4.19033042,1251.8,1251.5,1.19263258]
[1672806173897,4.19033042,1251.8,1251.5,1.69263258]
[1672806174106,3.0073,1251.7,1251.5,1.69263258]
[1672806174422,3.0073,1251.7,1251.5,1.19263258]
[1672806174740,3.0073,1251.7,1251.5,1.69263258]
[1672806175262,3.0073,1251.7,1251.5,1.19263258]
[1672806175470,3.0073,1251.7,1251.5,1.69263258]
[1672806175786,3.0073,1251.7,1251.5,1.19263258]
[1672806176104,3.0073,1251.7,1251.4,4.19993258]
[1672806176313,3.0073,1251.7,1251.5,1.69263258]
[1672806176733,3.0073,1251.7,1251.5,0.5]
[1672806178100,3.0073,1251.7,1251.4,1.69263258]
[1672806180414,3.0073,1251.7,1251.4,0.5]
[1672806181154,3.0073,1251.7,1251.4,1.69263258]
[1672806182309,3.0073,1251.7,1251.4,0.5]
[1672806182509,3.0073,1251.7,1251.4,1.69263258]
[1672806186725,3.0073,1251.8,1251.4,1.69263258]
[1672806188508,10.11779931,1252.0,1251.4,1.69263258]
[1672806188509,7.19763042,1252.1,1251.6,1.19263258]
[1672806188919,7.19763042,1252.1,1251.7,3.0073]
[1672806189132,3.0073,1252.1,1251.7,4.19993258]
[1672806190921,1.1814,1251.7,1251.4,2.222e-05]
[1672806191231,3.0073,1251.5,1250.8,19.61962482]
[1672806191441,3.0073,1251.1,1250.8,13.636]
[1672806191656,3.0073,1251.1,1250.8,0.5]
[1672806191868,3.0,1251.0,1250.8,0.5]
[1672806192912,3.0073,1250.9,1250.6,5.98362482]
[1672806193126,3.0073,1250.9,1250.7,0.5]
[1672806194174,3.0073,1250.9,1250.4,10.98362482]
[1672806194696,3.0073,1250.9,1250.5,0.5]
[1672806197860,3.0073,1250.9,1250.4,5.0]
[1672806198173,3.0073,1250.7,1250.4,5.0]
[1672806198383,3.0073,1250.7,1250.5,0.5]
[1672806198588,3.0073,1250.9,1250.5,0.5]
[1672806199754,3.0073,1250.7,1250.5,0.5]
[1672806203735,3.0073,1250.7,1250.4,5.0]
[1672806203944,3.0073,1250.7,1250.5,0.5]
[1672806205416,3.0073,1250.6,1250.5,0.5]
[1672806209626,3.0073,1250.8,1250.5,0.5]
[1672806209838,3.0073,1250.8,1250.4,5.0]
[1672806211416,4.1814,1251.0,1250.4,5.0]
[1672806211417,3.0073,1250.6,1250.4,5.0]
[1672806215609,3.0073,1250.8,1250.4,5.0]
[1672806224558,3.0073,1250.6,1250.4,5.0]
[1672806230247,3.0073,1250.6,1250.5,6.76475772]
[1672806230454,3.0073,1250.6,1250.5,3.7884329]
[1672806231919,3.0073,1250.6,1250.5,6.76475772]
[1672806232657,3.0073,1250.8,1250.5,4.39377865]
[1672806232869,3.0073,1250.8,1250.6,2.3887413]
[1672806233281,3.0073,1250.8,1250.7,1.7921442]
[1672806234130,3.0073,1250.8,1250.6,1.7921442]
[1672806235699,3.0073,1250.8,1250.7,1.7921442]
[1672806237058,3.0073,1250.8,1250.6,4.1808855]
[1672806237278,3.0073,1250.8,1250.7,1.7921442]
[1672806238959,3.0073,1250.8,1250.6,4.1808855]
[1672806239709,3.0073,1250.8,1250.7,1.7921442]
[1672806239710,6.57216989,1250.8,1250.7,1.7921442]
[1672806240130,6.57216989,1250.8,1250.6,4.1808855]
[1672806240969,3.0073,1250.7,1250.6,4.1808855]
[1672806241494,3.0073,1250.7,1250.6,2.3887413]
[1672806242231,3.0073,1250.7,1250.6,4.18276052]
[1672806243598,3.0073,1250.9,1250.6,4.39377451]
[1672806243925,3.0073,1250.9,1250.7,1.79314214]
[1672806244122,6.57216989,1250.9,1250.7,1.79314214]
[1672806248420,6.57216989,1250.9,1250.6,4.18399832]
[1672806249061,3.0073,1250.7,1250.6,1.79314214]
[1672806250530,3.0073,1250.7,1250.6,4.18399832]
[1672806250851,3.0073,1250.7,1250.6,1.79314214]
[1672806258447,3.0073,1250.7,1250.5,4.18399832]
[1672806258863,3.0073,1250.7,1250.5,1.79314214]
[1672806259079,6.57216989,1250.7,1250.5,1.79314214]
[1672806259386,3.0073,1250.7,1250.5,1.79314214]
[1672806259708,6.57216989,1250.7,1250.5,1.79314214]
[1672806259910,3.0073,1250.7,1250.6,1.79314214]
[1672806261171,3.0073,1250.7,1250.5,4.18399832]
[1672806261519,3.0073,1250.7,1250.5,1.79314214]
[1672806261712,6.57216989,1250.7,1250.5,1.79314214]
[1672806263497,6.57216989,1250.7,1250.5,4.18399832]
[1672806263498,3.0073,1250.7,1250.5,4.18399832]
[1672806263709,3.0073,1250.7,1250.5,1.79314214]
[1672806263920,3.0073,1250.7,1250.5,4.18399832]
[1672806264341,3.0073,1250.7,1250.5,1.79314214]
[1672806264546,3.0073,1250.7,1250.6,1.79314214]
[1672806265172,3.0073,1250.7,1250.5,1.79314214]
[1672806266019,6.57216989,1250.7,1250.5,1.79314214]
[1672806266443,3.0073,1250.7,1250.5,1.79314214]
[1672806267172,3.0073,1250.7,1250.5,1.7881465]
[1672806267381,3.56486989,1250.8,1250.5,2.39085618]
[1672806267594,11.94390031,1250.9,1250.5,3.80826934]
[1672806268002,7.75356989,1250.9,1250.5,3.80826934]
[1672806269484,6.57216989,1250.9,1250.5,3.80826934]
[1672806270011,6.52419675,1250.9,1250.6,2.39085618]
[1672806275688,6.57216989,1250.9,1250.6,2.39085618]
[1672806276621,3.56486989,1250.9,1250.6,2.39085618]
[1672806276840,6.57216989,1250.9,1250.6,2.39085618]
[1672806277152,6.57216989,1250.9,1250.5,8.374481]
[1672806278309,3.0073,1250.9,1250.6,2.39085618]
[1672806281564,6.57216989,1250.9,1250.6,2.39085618]
[1672806282087,3.0073,1250.9,1250.6,2.39085618]
[1672806282291,3.0073,1250.9,1250.5,2.39085618]
[1672806282506,3.0073,1250.7,1250.4,10.367181]
[1672806284068,3.0073,1250.7,1250.5,2.39085618]
[1672806285219,3.0073,1250.7,1250.4,7.39085618]
[1672806285433,3.0073,1250.7,1250.4,10.367181]
[1672806285646,3.0073,1250.7,1250.5,2.39085618]
[1672806286159,3.0073,1250.7,1250.4,10.367181]
[1672806286377,3.0073,1250.7,1250.5,2.39085618]
[1672806286693,3.0073,1250.7,1250.4,10.367181]
[1672806287222,3.0073,1250.7,1250.4,7.39085618]
[1672806298469,3.0073,1250.7,1250.4,5.0]
[1672806298671,3.0073,1250.7,1250.4,7.39085618]
[1672806300779,2.70343369,1250.7,1250.4,10.367181]
[1672806300981,10.76250031,1250.9,1250.4,10.367181]
[1672806301200,6.57216989,1250.9,1250.5,3.80822721]
[1672806301512,6.57216989,1250.9,1250.5,2.39085618]
[1672806302132,10.76250031,1250.9,1250.5,2.39085618]
[1672806302346,10.76250031,1250.9,1250.4,10.367181]
[1672806302557,6.57216989,1250.9,1250.5,2.39085618]
[1672806303514,3.35698631,1251.0,1250.6,7.39085618]
[1672806303827,6.0073,1251.1,1250.7,5.39815618]
[1672806304445,3.0073,1251.1,1250.7,5.39815618]
[1672806306036,3.0073,1251.1,1250.7,8.374481]
[1672806306346,8.97055197,1251.5,1251.0,8.0073]
[1672806306551,7.19033042,1251.6,1251.0,10.39815618]
[1672806306767,3.0073,1251.5,1251.0,8.0073]
[1672806306971,3.0073,1251.3,1251.0,5.0]
[1672806307283,1.5,1251.2,1251.1,0.5]
[1672806307499,3.0073,1251.3,1251.1,0.5]
[1672806313067,3.0073,1251.5,1251.1,4.69369786]
[1672806314231,3.0073,1251.5,1251.1,3.5073]
[1672806315808,6.0073,1251.6,1251.1,3.5073]
[1672806322219,6.00205349,1251.6,1251.1,3.5073]
[1672806325052,3.0073,1251.6,1251.2,5.0]
[1672806325260,3.0073,1251.9,1251.4,5.0]
[1672806325467,3.0,1251.7,1251.4,18.636]
[1672806325677,3.0,1251.7,1251.5,3.0073]
[1672806326314,3.0,1251.9,1251.5,3.0073]
[1672806327787,3.0073,1252.0,1251.5,3.0073]
[1672806328001,3.0073,1252.0,1251.7,3.0073]
[1672806329056,3.0073,1252.0,1251.8,0.5]
[1672806330950,4.5073,1252.1,1251.8,0.5]
[1672806334948,1.5,1252.1,1251.8,0.5]
[1672806335154,4.5073,1252.1,1251.8,0.5]
[1672806338943,1.5,1252.1,1251.8,0.5]
[1672806339154,3.0073,1252.0,1251.8,0.5]
[1672806340094,3.0073,1252.0,1251.7,0.5]
[1672806341041,3.0073,1251.8,1251.7,0.5]
[1672806343767,3.0073,1251.8,1251.6,5.0]
[1672806344502,3.0073,1251.8,1251.7,0.5]
[1672806347452,3.0073,1251.9,1251.7,0.5]
[1672806347656,2.6814,1252.1,1251.7,0.5]
[1672806347868,3.0073,1251.9,1251.7,0.5]
[1672806352602,3.0073,1251.8,1251.7,0.5]
[1672806355855,3.0073,1251.8,1251.6,6.18639786]
[1672806356066,3.0073,1251.8,1251.6,1.18639786]
[1672806356276,3.0073,1251.8,1251.5,1.68639786]
[1672806358585,3.0073,1251.8,1251.5,3.45665402]
[1672806359432,3.0073,1251.8,1251.5,1.68639786]
[1672806360485,3.0073,1251.8,1251.5,3.45665402]
[1672806360898,3.0073,1251.8,1251.5,1.68639786]
[1672806361324,3.0073,1251.8,1251.5,3.45665402]
[1672806362479,3.0073,1251.8,1251.6,1.18639786]
[1672806362895,3.0073,1252.0,1251.6,2.95665402]
[1672806363316,6.87173042,1252.1,1251.6,2.95665402]
[1672806363528,3.0073,1251.9,1251.6,2.95665402]
[1672806364165,3.0073,1251.9,1251.7,1.18639786]
[1672806364586,3.0073,1251.9,1251.7,2.95665402]
[1672806365218,3.0073,1251.9,1251.7,1.18639786]
[1672806365954,7.19763042,1252.0,1251.7,1.18639786]
[1672806368264,7.19763042,1252.0,1251.7,2.95665402]
[1672806370373,7.19763042,1252.0,1251.7,1.18639786]